bitfinex-derivatives/quotes_SOLF0:USTF0_20250829
["timestamp","ask_amount","ask_price","bid_price","bid_amount"]
[1756487675428,11.7427,203.0,202.92,4.4342]
[1756487675627,11.7427,203.0,202.91,7.67]
[1756487676128,11.7427,203.0,202.91,12.1045]
[1756487676330,11.7427,203.0,202.91,7.67]
[1756487677032,11.7427,203.0,202.94,4.4338]
[1756487677430,7.59,203.05,202.93,68.9753]
[1756487677735,7.59,203.05,202.98,4.4329]
[1756487678231,7.59,203.05,202.97,7.47]
[1756487679038,7.59,203.05,202.99,0.03351309]
[1756487679628,7.59,203.05,202.99,4.46621309]
[1756487680434,7.59,203.05,202.99,0.03351309]
[1756487681430,4.75655029,203.04,202.99,0.03351309]
[1756487681630,7.59,203.03,202.99,0.03351309]
[1756487681831,7.59,203.06,202.99,0.03351309]
[1756487682035,5.939852,203.05,202.99,0.03351309]
[1756487682336,7.59,203.06,202.99,0.03351309]
[1756487682637,2.44992361,203.05,202.99,0.03351309]
[1756487682937,7.59,203.06,202.99,0.03351309]
[1756487686238,7.59,203.03,202.99,0.03351309]
[1756487686438,4.4319,203.04,202.99,0.03351309]
[1756487686637,7.59,203.03,202.99,0.03351309]
[1756487687337,4.4319,203.04,202.99,0.03351309]
[1756487687534,7.59,203.03,202.99,0.03351309]
[1756487687734,4.4319,203.04,202.99,0.03351309]
[1756487688039,7.59,203.05,202.99,0.03351309]
[1756487689031,4.4319,203.04,202.99,0.03351309]
[1756487689235,7.59,203.08,202.99,0.03351309]
[1756487689437,7.59,203.06,202.99,0.03351309]
[1756487690237,12.34655029,203.06,202.99,0.03351309]
[1756487690842,12.0221,203.03,202.99,0.03351309]
[1756487691038,7.59,203.02,202.99,0.03351309]
[1756487691841,7.59,203.0,202.99,0.03351309]
[1756487695456,4.4321,203.03,202.99,0.03351309]
[1756487695656,7.59,203.02,202.99,0.03351309]
[1756487695850,4.4324,203.02,202.99,0.03351309]
[1756487696152,7.59,203.01,202.99,0.03351309]
[1756487698444,4.75655029,203.06,202.99,0.03351309]
[1756487698754,7.59,203.05,202.99,0.03351309]
[1756487699655,12.0216,203.05,202.99,0.03351309]
[1756487699954,7.59,203.05,202.99,0.03351309]
[1756487700154,7.59,203.05,202.99,4.46621309]
[1756487700349,7.59,203.09,202.99,12.26006338]
[1756487700546,7.59,203.09,202.99,81.21586338]
[1756487700751,7.59,203.09,203.02,4.75655029]
[1756487701152,7.59,203.09,203.02,4.79094741]
[1756487701358,12.34655029,203.09,203.02,0.03439712]
[1756487701754,5.82943347,203.08,203.02,0.03439712]
[1756487701953,7.59,203.08,203.02,0.03439712]
[1756487702756,5.82876099,203.07,203.02,0.03439712]
[1756487703057,7.59,203.08,203.02,0.03439712]
[1756487703258,5.82911608,203.07,203.02,0.03439712]
[1756487703556,7.59,203.08,203.02,0.03439712]
[1756487703760,7.59,203.04,203.02,0.03439712]
[1756487704455,7.59,203.14,203.03,7.97]
[1756487704752,5.83032233,203.13,203.03,7.47]
[1756487704954,7.59,203.14,203.03,7.47]
[1756487705151,5.83018085,203.13,203.06,0.03608705]
[1756487705351,7.59,203.14,203.08,4.75655029]
[1756487705861,7.59,203.18,203.08,4.75655029]
[1756487706163,7.59,203.18,203.09,7.47]
[1756487706351,4.75655029,203.23,203.09,7.47]
[1756487706556,7.59,203.23,203.12,7.47]
[1756487706758,7.42,203.18,203.11,0.0330143]
[1756487707462,12.17655029,203.18,203.11,0.0330143]
[1756487707752,143.75655029,203.18,203.11,0.0330143]
[1756487707959,7.42,203.14,203.11,0.0330143]
[1756487708160,7.42,203.13,203.11,0.0330143]
[1756487708554,7.42,203.12,203.03,4.75655029]
[1756487708760,7.42,203.09,203.01,338.27]
[1756487708961,7.42,203.09,203.01,7.31]
[1756487709559,7.42,203.14,203.02,7.60406208]
[1756487709856,0.03708833,203.07,203.03,7.31]
[1756487710062,7.45708833,203.07,203.0,4.4326]
[1756487710257,7.45708833,203.07,202.99,7.31]
[1756487710855,11.88838833,203.07,202.99,7.31]
[1756487711364,7.45708833,203.07,202.99,7.31]
[1756487711561,7.45708833,203.07,202.96,7.60406208]
[1756487711861,7.45708833,203.07,202.95,19.34766208]
[1756487712057,7.45708833,203.07,202.95,14.91406208]
[1756487712261,4.4314,203.06,202.95,7.60406208]
[1756487712564,0.03708833,203.07,203.03,7.60406208]
[1756487712764,4.4305,203.11,203.03,14.91406208]
[1756487713063,0.03227407,203.07,203.03,7.60406208]
[1756487713254,0.03227407,203.07,203.05,7.31]
[1756487713454,0.03227407,203.07,202.94,8.15165891]
[1756487713665,0.03227407,203.07,202.98,7.60406208]
[1756487714163,0.03227407,203.07,202.99,4.4327]
[1756487714459,0.03227407,203.07,202.99,7.31]
[1756487715463,0.03227407,203.07,203.03,7.31]
[1756487715864,0.03227407,203.07,203.0,7.60406208]
[1756487716064,0.03227407,203.07,202.99,138.81]
[1756487716866,0.03227407,203.07,203.01,4.4322]
[1756487717265,0.03227407,203.07,202.99,138.81]
[1756487718260,0.03227407,203.07,203.02,4.432]
[1756487718465,0.03227407,203.07,202.99,193.5]
[1756487718667,0.03227407,203.07,202.99,131.5]
[1756487719271,7.42,203.06,202.98,7.31]
[1756487719658,0.03227407,203.07,202.99,7.31]
[1756487719858,0.03227407,203.07,203.02,4.4322]
[1756487720062,0.03227407,203.07,203.01,68.9492]
[1756487720263,0.03227407,203.07,203.03,7.31]
[1756487720470,0.03227407,203.07,203.02,7.60406208]
[1756487720664,0.03227407,203.07,203.06,7.31]
[1756487721062,0.03227407,203.07,203.06,14.91406208]
[1756487721262,7.42,203.23,203.11,4.4302]
[1756487721458,5.82994208,203.22,203.11,4.4302]
[1756487721762,4.4293,203.16,203.1,7.31]
[1756487722065,4.4293,203.16,203.08,4.4307]
[1756487722664,7.42,203.17,203.1,0.03485218]
[1756487723473,7.42,203.17,203.11,4.4301]
[1756487723770,7.42,203.17,203.1,0.03485218]
[1756487724470,7.42,203.19,203.1,0.03485218]
[1756487725173,4.4291,203.17,203.1,0.03485218]
[1756487725962,7.42,203.19,203.1,0.03485218]
[1756487726367,68.8921,203.18,203.1,0.03485218]
[1756487726569,7.42,203.17,203.1,0.03485218]
[1756487726973,11.8496,203.15,203.1,0.03485218]
[1756487727164,68.8785,203.22,203.1,0.03485218]
[1756487727165,7.42,203.21,203.1,0.03485218]
[1756487727367,7.42,203.21,203.12,14.91406208]
[1756487727576,4.4284,203.2,203.12,19.34386208]
[1756487727870,7.42,203.21,203.12,14.91406208]
[1756487728066,11.8471,203.26,203.17,4.4288]
[1756487728261,7.42,203.26,203.15,7.31]
[1756487728873,7.42,203.26,203.18,0.03656901]
[1756487729970,68.8567,203.29,203.18,0.03656901]
[1756487729971,68.8684,203.25,203.18,0.03656901]
[1756487730173,7.42,203.22,203.18,0.03656901]
[1756487730476,7.42,203.24,203.18,0.03656901]
[1756487732477,7.42,203.27,203.19,4.74561618]
[1756487733074,11.847,203.27,203.17,11.7388]
[1756487733371,103.57476029,203.31,203.22,4.74561618]
[1756487733772,7.42,203.3,203.21,0.0377593]
[1756487733967,7.42,203.28,203.21,0.0377593]
[1756487734173,68.862,203.27,203.21,0.0377593]
[1756487734477,7.42,203.26,203.21,0.0377593]
[1756487734872,68.862,203.27,203.21,0.0377593]
[1756487735074,68.869,203.25,203.21,0.0377593]
[1756487735673,7.42,203.22,203.21,5.93e-05]
[1756487735872,7.42,203.2,203.13,4.74561618]
[1756487736079,7.42,203.18,203.1,4.74561618]
[1756487736482,7.42,203.18,203.1,12.05561618]
[1756487736975,7.42,203.18,203.1,16.48591618]
[1756487737276,0.03757796,203.16,203.1,12.05561618]
[1756487739181,0.03757796,203.16,203.1,7.31]
[1756487740588,7.88,203.15,203.04,4.74561618]
[1756487741085,7.88,203.15,203.05,7.42]
[1756487741285,0.03691732,203.12,203.05,7.42]
[1756487741489,7.91691732,203.12,203.05,7.42]
[1756487742181,7.91691732,203.12,203.03,4.74561618]
[1756487742389,7.88,203.11,203.0,12.16561618]
[1756487742582,7.88,203.11,203.0,7.42]
[1756487742980,7.88,203.11,203.02,4.74561618]
[1756487743181,0.03697534,203.08,203.02,4.74561618]
[1756487743489,0.03697534,203.08,203.0,7.42]
[1756487743685,7.91697534,203.08,203.0,7.42]
[1756487744081,7.91697534,203.08,202.98,4.74561618]
[1756487744284,7.91697534,203.08,202.99,7.42]
[1756487744480,7.91697534,203.08,203.01,4.74561618]
[1756487744681,0.03697534,203.08,203.01,4.74561618]
[1756487745490,0.03697534,203.08,203.02,7.42]
[1756487747079,0.03697534,203.08,203.0,4.74561618]
[1756487747486,7.88,203.09,203.0,4.74561618]
[1756487747680,7.88,203.09,202.99,7.42]
[1756487747887,7.91421747,203.06,202.99,7.42]
[1756487748086,7.88,203.05,202.94,7.42]
[1756487748287,4.74561618,203.04,202.94,7.42]
[1756487748891,0.0367111,203.01,202.94,7.42]
[1756487749685,7.88,203.0,202.85,7.42]
[1756487749992,7.88,202.97,202.85,7.42]
[1756487750294,7.88,202.97,202.82,338.41065008]
[1756487750295,7.88,202.97,202.87,7.42]
[1756487750484,0.03756132,202.95,202.89,7.61065008]
[1756487750684,0.03756132,202.95,202.9,7.42]
[1756487750884,0.03756132,202.95,202.89,7.61065008]
[1756487751090,0.03756132,202.95,202.9,7.42]
[1756487751288,0.03756132,202.95,202.89,15.03065008]
[1756487751688,0.03756132,202.95,202.85,7.42]
[1756487755495,7.88,202.94,202.85,7.42]
[1756487757393,7.88,202.93,202.79,7.42]
[1756487758094,7.88,202.87,202.75,7.42]
[1756487758893,7.88,202.82,202.71,20.03490533]
[1756487759692,0.03654194,202.79,202.71,20.03490533]
[1756487760395,0.5,202.78,202.71,20.03490533]
[1756487760693,0.53654194,202.79,202.71,20.03490533]
[1756487760900,7.61065008,202.77,202.71,20.03490533]
[1756487761086,7.88,202.76,202.71,20.03490533]
[1756487761292,7.61065008,202.72,202.6,1.0]
[1756487761492,14.77,202.78,202.6,1.0]
[1756487761689,7.61065008,202.64,202.6,1.0]
[1756487762500,18.68,202.64,202.6,1.0]
[1756487762693,7.61065008,202.61,202.44,7.42]
[1756487762992,7.61065008,202.61,202.32,7.61065008]
[1756487762993,0.03570133,202.64,202.48,3.92]
[1756487763194,331.16,202.66,202.53,7.42]
[1756487763393,0.03290076,202.58,202.52,3.34490533]
[1756487763699,0.03290076,202.58,202.43,7.04]
[1756487763700,0.03290076,202.58,202.47,3.34490533]
[1756487763899,94.33065008,202.57,202.41,7.42]
[1756487764200,7.61065008,202.53,202.43,3.92]
[1756487764492,0.03149022,202.51,202.41,7.42]
[1756487764702,0.03149022,202.51,202.4,7.42]
[1756487764890,7.61065008,202.59,202.48,3.34490533]
[1756487765094,7.61065008,202.6,202.47,7.42]
[1756487765298,331.3,202.81,202.59,3.92]
[1756487765490,7.61065008,202.73,202.64,3.34490533]
[1756487765694,331.3,202.81,202.61,7.42]
[1756487765895,338.91065008,202.81,202.69,3.92]
[1756487766097,0.03254302,202.71,202.64,7.42]
[1756487766295,7.61065008,202.68,202.56,7.42]
[1756487766495,0.02,202.79,202.58,3.92]
[1756487766691,0.03789202,202.7,202.61,7.35]
[1756487766994,0.03789202,202.7,202.65,3.34490533]
[1756487767196,0.03789202,202.7,202.61,7.35]
[1756487767392,0.03789202,202.7,202.63,3.34490533]
[1756487767797,0.03789202,202.7,202.65,3.34490533]
[1756487767992,7.61065008,202.69,202.62,3.34490533]
[1756487768195,0.02,202.76,202.6,14.96065008]
[1756487768399,0.02,202.82,202.69,7.35]
[1756487768598,0.02,202.82,202.75,3.34490533]
[1756487768796,0.02,202.82,202.74,3.92]
[1756487769102,0.03738935,202.78,202.69,7.35]
[1756487769304,0.03738935,202.78,202.69,11.27]
[1756487769495,7.61065008,202.75,202.64,7.35]
[1756487769701,7.61065008,202.71,202.65,3.34490533]
[1756487770003,0.02,202.76,202.66,3.34490533]
[1756487770192,0.03778051,202.7,202.66,3.34490533]
[1756487770397,0.03778051,202.7,202.63,7.35]
[1756487770696,0.05778051,202.7,202.59,7.35]
[1756487771201,0.02,202.7,202.62,3.34490533]
[1756487771402,0.03623436,202.67,202.62,7.26490533]
[1756487771799,0.03623436,202.67,202.58,7.35]
[1756487772102,0.02,202.63,202.52,7.35]
[1756487772401,0.02,202.63,202.51,3.92]
[1756487772599,0.02,202.63,202.52,3.34490533]
[1756487772802,0.03189643,202.59,202.44,7.35]
[1756487772999,0.03189643,202.59,202.58,3.34490533]
[1756487773194,0.03189643,202.59,202.4,62.0]
[1756487773195,7.37,202.58,202.39,1.0]
[1756487773404,12.41170049,202.48,202.39,1.0]
[1756487773595,19.78170049,202.51,202.39,1.0]
[1756487773996,7.37,202.51,202.39,1.0]
[1756487774200,0.03229274,202.47,202.39,1.0]
[1756487775201,7.37,202.46,202.39,1.0]
[1756487775595,12.41170049,202.45,202.39,1.0]
[1756487775799,83.17170049,202.45,202.39,1.0]
[1756487776000,7.37,202.43,202.39,1.0]
[1756487776301,7.37,202.36,202.22,7.35]
[1756487776500,7.37,202.32,202.15,7.35]
[1756487777101,0.03495365,202.26,202.15,19.76170049]
[1756487777608,7.37,202.31,202.16,7.35]
[1756487777804,0.0373392,202.23,202.16,7.35]
[1756487778005,7.41,202.36,202.19,7.35]
[1756487778305,14.77,202.34,201.77,331.68]
[1756487778502,7.37,202.29,202.01,7.35]
[1756487778703,12.41170049,202.44,202.06,7.35]
[1756487778903,7.37,202.37,202.16,12.41170049]
[1756487779209,7.37,202.37,202.12,7.35]
[1756487779210,7.37,202.44,202.22,7.35]
[1756487779408,7.37,202.44,202.24,7.35]
[1756487779604,7.37,202.44,202.23,5.44]
[1756487779605,12.41170049,202.41,202.2,7.35]
[1756487779810,7.4,202.4,202.32,0.03473917]
[1756487780307,12.41170049,202.37,202.32,0.03473917]
[1756487780502,166.33,202.4,202.18,7.35]
[1756487780503,12.41170049,202.33,202.18,7.35]
[1756487780911,7.4,202.32,202.18,7.35]
[1756487781608,12.41170049,202.36,202.18,7.35]
[1756487781804,0.03246248,202.27,202.18,7.35]
[1756487782302,7.44,202.45,202.21,7.35]
[1756487782502,7.44,202.45,202.25,7.35]
[1756487782706,116.19018243,202.5,202.24,12.41170049]
[1756487783006,116.19018243,202.5,202.29,7.35]
[1756487783208,7.44,202.59,202.33,7.35]
[1756487783404,12.41170049,202.53,202.35,7.35]
[1756487783599,12.41170049,202.53,202.38,7.35]
[1756487783808,12.41170049,202.57,202.37,7.35]
[1756487784005,12.41170049,202.57,202.39,7.35]
[1756487784206,7.44,202.59,202.44,7.35]
[1756487784411,12.41170049,202.63,202.44,7.35]
[1756487784707,7.44,202.62,202.44,7.35]
[1756487784902,12.41170049,202.55,202.39,14.68]
[1756487785103,12.41170049,202.59,202.4,7.35]
[1756487785302,12.41170049,202.59,202.51,0.03124245]
[1756487786007,7.44,202.6,202.51,0.03124245]
[1756487786313,7.44,202.66,202.51,0.03124245]
[1756487786706,7.44,202.66,202.46,7.35]
[1756487787114,7.44,202.66,202.56,0.03117108]
[1756487787609,331.9,202.74,202.57,7.35]
[1756487787610,7.44,202.72,202.57,7.35]
[1756487787818,7.44,202.72,202.59,0.03647727]
[1756487788008,7.44,202.78,202.6,7.35]
[1756487788203,0.0325096,202.67,202.6,7.35]
[1756487788409,0.0325096,202.67,202.6,19.76170049]
[1756487788913,0.0325096,202.67,202.61,0.03336978]
[1756487789114,7.44,202.78,202.62,7.35]
[1756487789511,225.1526,202.82,202.64,7.35]
[1756487789711,68.9919,202.89,202.69,7.35]
[1756487789712,73.4375,202.86,202.69,7.35]
[1756487789906,331.86,202.87,202.69,7.35]
[1756487790106,331.86,202.87,202.68,233.01230049]
[1756487790107,68.9899,202.89,202.73,7.35]
[1756487790309,85.84440049,202.87,202.76,0.03262056]
[1756487790511,12.41170049,202.87,202.76,0.03262056]
[1756487790713,7.47,202.9,202.73,7.35]
[1756487790909,76.4567,202.9,202.73,7.35]
[1756487791115,7.47,202.9,202.79,0.03437881]
[1756487791311,7.47,202.96,202.79,7.38437881]
[1756487791506,7.47,202.96,202.82,7.35]
[1756487791711,151.48,202.99,202.82,159.17]
[1756487792216,68.9624,202.97,202.87,0.03708124]
[1756487792415,220.4369,202.99,202.87,0.03708124]
[1756487792625,68.9624,202.97,202.87,0.03708124]
[1756487793012,68.9488,203.01,202.87,0.03708124]
[1756487793213,80.8483,203.02,202.88,7.35]
[1756487793417,68.9535,203.0,202.88,7.35]
[1756487793917,4.4332,202.98,202.93,0.03267086]
[1756487794114,7.47,203.02,202.93,0.03267086]
[1756487794419,80.8243,203.09,202.93,7.38267086]
[1756487794813,68.932,203.06,202.93,7.35]
[1756487795014,68.926,203.08,202.93,7.35]
[1756487795211,68.9251,203.08,202.99,0.03276742]
[1756487795712,73.356,203.08,202.99,0.03276742]
[1756487795920,151.48,203.1,202.99,0.03276742]
[1756487796118,220.3984,203.1,202.99,0.03276742]
[1756487796308,68.9262,203.08,202.99,0.03276742]
[1756487796509,68.9322,203.06,202.99,0.03276742]
[1756487796911,73.3741,203.03,202.99,0.03276742]
[1756487797114,68.9563,202.99,202.85,32.3]
[1756487797314,68.9563,202.99,202.84,158.79]
[1756487797615,7.41,203.0,202.84,158.79]
[1756487797820,68.9559,202.99,202.84,7.95]
[1756487798019,7.41,203.0,202.84,7.95]
[1756487798219,68.9558,202.99,202.84,7.95]
[1756487798613,73.3888,202.99,202.84,7.95]
[1756487798813,7.41,203.0,202.89,0.03242869]
[1756487799308,81.34610049,203.06,202.89,0.03242869]
[1756487799309,4.4319,203.04,202.89,7.98242869]
[1756487799509,7.41,203.06,202.89,89.38352918]
[1756487799715,7.41,203.06,202.9,68.9841]
[1756487799922,7.41,203.06,202.93,7.95]
[1756487800217,155.9104,203.1,202.93,20.36170049]
[1756487800218,151.48,203.1,202.93,20.36170049]
[1756487800419,151.48,203.1,202.94,73.406]
[1756487800720,7.41,203.12,202.98,7.95]
[1756487801620,19.82170049,203.12,202.98,7.95]
[1756487801817,68.9158,203.11,202.98,7.95]
[1756487802121,73.346,203.11,202.98,7.95]
[1756487802418,68.9366,203.05,202.91,339.27]
[1756487802615,68.9366,203.05,202.85,20.36170049]
[1756487802616,4.4326,203.01,202.85,20.36170049]
[1756487802813,7.41,203.02,202.85,89.36530049]
[1756487803009,7.41,203.02,202.85,20.36170049]
[1756487803422,68.9564,202.99,202.85,7.95]
[1756487803616,7.41,203.02,202.85,7.95]
[1756487803923,68.9495,203.01,202.85,20.36170049]
[1756487804222,68.9496,203.01,202.91,0.03246368]
[1756487804424,4.4332,202.98,202.91,0.03246368]
[1756487804722,68.9529,203.0,202.91,0.03246368]
[1756487804913,11.8422,203.02,202.91,0.03246368]
[1756487805112,68.95,203.01,202.91,0.03246368]
[1756487805316,68.957,202.99,202.91,0.03246368]
[1756487805512,7.41,203.02,202.91,0.03246368]
[1756487805826,68.957,202.99,202.91,0.03246368]
[1756487806319,7.41,202.97,202.91,0.03246368]
[1756487806524,68.9739,202.94,202.91,0.03246368]
[1756487806817,73.422,202.9,202.79,7.95]
[1756487807019,4.435,202.9,202.79,7.95]
[1756487807225,4.4354,202.88,202.79,7.95]
[1756487807418,4.4354,202.88,202.73,7.95]
[1756487807719,12.41170049,202.91,202.74,69.0407]
[1756487807924,0.03622558,202.83,202.77,4.4376]
[1756487808119,0.03622558,202.83,202.77,7.95]
[1756487808721,0.03622558,202.83,202.71,12.3888]
[1756487808920,0.03622558,202.83,202.71,7.95]
[1756487809115,0.03622558,202.83,202.73,4.4384]
[1756487809320,0.03622558,202.83,202.75,7.95]
[1756487809517,0.03622558,202.83,202.8,73.4573]
[1756487809826,7.37,202.94,202.81,76.9672]
[1756487810118,19.82170049,202.99,202.81,76.9672]
[1756487810324,4.4332,202.98,202.84,4.436]
[1756487810820,4.4332,202.98,202.83,69.0101]
[1756487811020,4.4332,202.98,202.84,7.95]
[1756487811522,4.4332,202.98,202.89,0.03248195]
[1756487812118,7.41,202.99,202.89,0.03248195]
[1756487813420,7.41,202.99,202.89,4.46738195]
[1756487813617,331.18,203.03,202.89,69.02258195]
[1756487814020,400.1234,203.03,202.88,7.95]
[1756487814323,4.4336,202.96,202.81,7.95]
[1756487814522,68.9667,202.96,202.81,7.95]
[1756487814919,4.4341,202.94,202.81,7.95]
[1756487815120,156.03,202.97,202.82,69.014]
[1756487815320,7.41,202.97,202.86,0.03222694]
[1756487816123,4.434,202.94,202.86,0.03222694]
[1756487816929,76.3733,202.97,202.86,0.03222694]
[1756487817121,7.41,202.97,202.86,0.03222694]
[1756487817325,4.4339,202.95,202.86,0.03222694]
[1756487817827,7.41,202.97,202.86,0.03222694]
[1756487818127,4.4335,202.96,202.86,0.03222694]
[1756487818727,7.41,202.97,202.86,4.46792694]
[1756487819125,7.41,202.94,202.86,0.03222694]
[1756487819424,7.41,202.92,202.86,0.03222694]
[1756487820324,4.434,202.94,202.86,0.03222694]
[1756487820728,7.41,203.02,202.88,68.9927]
[1756487820925,7.41,203.02,202.91,4.4346]
[1756487821125,7.41,203.02,202.87,7.95]
[1756487821320,7.41,203.02,202.88,68.9925]
[1756487821522,4.4324,203.01,202.94,0.03216575]
[1756487821721,76.3665,202.99,202.94,0.03216575]
[1756487821930,7.41,202.95,202.81,7.95]
[1756487822131,11.8437,202.95,202.84,4.4361]
[1756487822426,7.41,202.95,202.85,7.95]
[1756487822631,7.41,202.95,202.87,4.4353]
[1756487822931,7.41,203.01,202.87,68.997]
[1756487823125,0.03259783,202.93,202.91,4.4346]
[1756487823321,0.03259783,202.93,202.91,12.3846]
[1756487823531,7.41,203.01,202.91,12.3846]
[1756487823729,0.03665976,202.94,202.91,12.3846]
[1756487824226,0.03665976,202.94,202.91,7.95]
[1756487824426,0.03665976,202.94,202.87,68.997]
[1756487824427,0.03665976,202.94,202.89,68.9895]
[1756487824631,0.03665976,202.94,202.91,7.95]
[1756487825428,0.03665976,202.94,202.9,12.3846]
[1756487825628,0.03665976,202.94,202.89,68.9875]
[1756487825824,12.41170049,203.08,202.96,7.95]
[1756487825825,7.41,203.08,202.96,7.95]
[1756487826029,7.41,203.08,202.98,4.4331]
[1756487826426,7.41,203.08,202.96,7.95]
[1756487826627,7.41,203.08,202.93,4.4341]
[1756487826827,68.9295,203.07,202.93,4.4341]
[1756487827038,68.9295,203.07,202.98,0.03513191]
[1756487827335,112.60061226,203.09,202.98,0.03513191]
[1756487827522,147.22,203.15,202.98,0.03513191]
[1756487827728,7.45,203.14,203.01,4.4322]
[1756487827929,7.45,203.14,202.99,12.41170049]
[1756487827930,76.3558,203.14,202.99,12.41170049]
[1756487828125,7.45,203.14,202.99,12.41170049]
[1756487828430,7.45,203.11,203.05,0.03688124]
[1756487828833,7.45,202.9,202.7,12.41170049]
[1756487829031,12.41170049,202.85,202.68,7.67]
[1756487829532,12.41170049,202.77,202.68,7.67]
[1756487829734,12.41170049,202.73,202.54,69.109]
[1756487829933,12.41170049,202.73,202.56,69.1014]
[1756487830128,12.41170049,202.73,202.59,7.67]
[1756487830833,0.03413191,202.68,202.59,7.67]
[1756487831039,7.48,202.84,202.64,7.67]
[1756487831338,7.48,202.84,202.66,4.44]
[1756487831635,7.48,202.84,202.65,162.53170049]
[1756487831836,7.48,202.84,202.65,150.12]
[1756487832037,7.48,202.84,202.65,154.5602]
[1756487832235,7.48,202.84,202.67,7.67]
[1756487832434,7.48,202.84,202.72,0.03166336]
[1756487832939,7.48,202.9,202.72,7.70166336]
[1756487833234,7.48,202.85,202.72,0.03166336]
[1756487833433,7.48,202.82,202.66,7.67]
[1756487833632,12.41170049,202.83,202.66,7.67]
[1756487833633,7.48,202.8,202.66,7.67]
[1756487835028,7.48,202.8,202.53,331.1]
[1756487835029,12.41170049,202.74,202.56,69.102]
[1756487835229,12.41170049,202.74,202.55,69.1055]
[1756487835429,7.48,202.73,202.54,7.67]
[1756487835732,0.03422109,202.67,202.58,7.67]
[1756487836742,0.03422109,202.67,202.61,69.0847]
[1756487837038,0.03422109,202.67,202.63,69.0789]
[1756487837235,331.2,202.83,202.65,76.7414]
[1756487837435,331.2,202.83,202.69,69.0571]
[1756487837644,7.51,202.84,202.7,76.7251]
[1756487837841,7.51,202.84,202.71,4.4389]
[1756487838437,7.51,202.84,202.75,0.03179027]
[1756487838945,0.03306276,202.8,202.75,0.03179027]
[1756487839341,0.03306276,202.8,202.76,7.67]
[1756487840139,0.03306276,202.8,202.75,4.46979027]
[1756487840140,0.03306276,202.8,202.78,7.67]
[1756487841341,7.53,202.98,202.85,69.004]
[1756487841535,7.53,202.98,202.84,69.0075]
[1756487841743,7.53,202.98,202.85,69.0035]
[1756487842342,7.53,202.98,202.9,4.4348]
[1756487843141,7.53,202.98,202.89,0.03553967]
[1756487844948,7.53,202.98,202.92,4.4343]
[1756487845143,7.53,202.98,202.89,0.03553967]
[1756487846044,7.53,202.98,202.91,4.4345]
[1756487846240,7.53,203.03,202.89,0.03553967]
[1756487846451,7.53,203.0,202.89,0.03553967]
[1756487847446,7.53,202.97,202.89,0.03553967]
[1756487848059,113.91777043,203.01,202.89,0.03553967]
[1756487848359,113.91777043,203.01,202.89,69.02603967]
[1756487848661,113.91777043,203.01,202.92,4.4344]
[1756487849052,113.91777043,203.01,202.91,4.4346]
[1756487849255,113.91777043,203.01,202.89,68.9903]
[1756487849558,113.91777043,203.01,202.94,0.0328892]
[1756487849765,7.53,203.01,202.94,0.0328892]
[1756487850456,68.9534,203.0,202.94,0.0328892]
[1756487850760,7.5,202.98,202.78,76.6961]
[1756487851060,11.9336,202.96,202.84,4.436]
[1756487851363,7.5,202.96,202.85,69.0038]
[1756487851557,27.50807819,203.02,202.89,68.9886]
[1756487851757,7.5,203.02,202.9,68.9873]
[1756487852063,7.5,203.02,202.89,68.9905]
[1756487852267,7.5,202.98,202.86,69.0001]
[1756487852561,20.00807819,203.01,202.93,0.03160118]